bitfinex/quotes_BTCUSD_20240810
["timestamp","ask_amount","ask_price","bid_price","bid_amount"]
[1723263123274,2.50136041,60395.0,60394.0,0.0093777]
[1723263124167,2.19379049,60395.0,60394.0,0.1485777]
[1723263124371,2.07020741,60395.0,60394.0,0.1485777]
[1723263125424,2.17020741,60395.0,60394.0,0.1485777]
[1723263126055,1.51142637,60395.0,60394.0,0.1485777]
[1723263126278,1.62532637,60395.0,60394.0,0.1485777]
[1723263126496,1.55115553,60395.0,60394.0,0.1485777]
[1723263126724,1.56515553,60395.0,60394.0,0.1485777]
[1723263127180,1.48126631,60395.0,60394.0,0.1485777]
[1723263127390,1.35772086,60395.0,60394.0,0.1485777]
[1723263129327,1.65803643,60395.0,60394.0,0.1485777]
[1723263129530,1.68904698,60395.0,60394.0,0.1485777]
[1723263129738,1.68904698,60395.0,60394.0,0.0875777]
[1723263132381,1.68906233,60395.0,60394.0,0.0875777]
[1723263135893,1.68905434,60395.0,60394.0,0.0875777]
[1723263136957,1.66105434,60395.0,60394.0,0.0875777]
[1723263137367,1.67405434,60395.0,60394.0,0.0875777]
[1723263138648,1.68705434,60395.0,60394.0,0.0875777]
[1723263139078,1.68705434,60395.0,60394.0,0.0093777]
[1723263139313,1.68713598,60395.0,60394.0,0.0093777]
[1723263139943,1.68713601,60395.0,60394.0,0.0093777]
[1723263143586,2.92498597,60395.0,60394.0,0.0093777]
[1723263143775,3.00498597,60395.0,60394.0,0.0093777]
[1723263143978,3.02498597,60395.0,60394.0,0.0093777]
[1723263144599,2.83636339,60395.0,60394.0,0.0093777]
[1723263144786,3.00794226,60395.0,60394.0,0.0093777]
[1723263144933,3.00194226,60395.0,60394.0,0.0093777]
[1723263145133,3.00194363,60395.0,60394.0,0.0093777]
[1723263145565,2.98494363,60395.0,60394.0,0.0093777]
[1723263145741,2.99494363,60395.0,60394.0,0.0093777]
[1723263145951,2.99894363,60395.0,60394.0,0.0093777]
[1723263146189,2.98494363,60395.0,60394.0,0.0093777]
[1723263146389,2.97516728,60395.0,60394.0,0.0093777]
[1723263146587,2.98916728,60395.0,60394.0,0.0093777]
[1723263146789,3.00316728,60395.0,60394.0,0.0093777]
[1723263147234,3.02316728,60395.0,60394.0,0.0093777]
[1723263147445,3.01316728,60395.0,60394.0,0.0093777]
[1723263148206,3.00316728,60395.0,60394.0,0.0093777]
[1723263148426,3.01316728,60395.0,60394.0,0.0093777]
[1723263149512,3.02316728,60395.0,60394.0,0.0093777]
[1723263149957,3.00316728,60395.0,60394.0,0.0093777]
[1723263150172,3.00418136,60395.0,60394.0,0.0093777]
[1723263150397,2.75598136,60395.0,60394.0,0.0093777]
[1723263150624,1.42457591,60395.0,60394.0,0.1500777]
[1723263150852,1.21804518,60395.0,60394.0,0.1500777]
[1723263151096,0.88689543,60395.0,60394.0,0.1500777]
[1723263151302,0.841882,60395.0,60394.0,0.1500777]
[1723263151733,0.855882,60395.0,60394.0,0.1500777]
[1723263152579,0.524729,60395.0,60394.0,0.1500777]
[1723263153024,0.165576,60395.0,60394.0,0.1500777]
[1723263153282,0.165576,60395.0,60394.0,0.1520777]
[1723263153517,0.165576,60395.0,60394.0,0.1530777]
[1723263153724,0.496729,60395.0,60394.0,0.1530777]
[1723263153944,0.496729,60395.0,60394.0,0.1520777]
[1723263154381,0.496729,60395.0,60394.0,0.1540777]
[1723263154627,0.496729,60395.0,60394.0,0.1520777]
[1723263154838,0.165576,60395.0,60394.0,0.1520777]
[1723263155060,0.165576,60395.0,60394.0,0.1550777]
[1723263155257,0.165576,60395.0,60394.0,0.1530777]
[1723263155593,0.000832,60398.0,60396.0,0.0614]
[1723263155796,0.000832,60398.0,60397.0,0.16888219]
[1723263156059,0.000832,60398.0,60397.0,0.30958219]
[1723263156313,0.000832,60398.0,60397.0,0.1407]
[1723263156515,0.497536,60398.0,60397.0,0.1407]
[1723263157155,0.497536,60398.0,60397.0,0.1417]
[1723263157584,0.1664,60398.0,60397.0,0.1417]
[1723263157790,0.1664,60398.0,60397.0,0.1427]
[1723263157997,0.1664,60398.0,60397.0,0.1407]
[1723263158204,0.1664,60398.0,60397.0,0.1417]
[1723263158205,0.000832,60398.0,60397.0,0.1417]
[1723263158889,0.000832,60398.0,60397.0,0.26377132]
[1723263159100,0.000832,60398.0,60397.0,0.26377072]
[1723263159333,0.000832,60398.0,60397.0,0.1417]
[1723263159566,0.000832,60398.0,60397.0,0.1427]
[1723263159927,0.000832,60398.0,60397.0,1.68548773]
[1723263160146,0.000832,60398.0,60397.0,1.70148773]
[1723263160586,0.000832,60398.0,60397.0,1.69944016]
[1723263160818,0.000832,60398.0,60397.0,1.69744016]
[1723263161054,0.000832,60398.0,60397.0,1.69943791]
[1723263161310,0.001832,60398.0,60397.0,1.69943791]
[1723263162027,0.001832,60398.0,60397.0,1.69743791]
[1723263162258,0.001832,60398.0,60397.0,1.36629591]
[1723263162477,0.000832,60398.0,60397.0,1.36429591]
[1723263162755,0.001832,60398.0,60397.0,1.36829591]
[1723263162989,0.002832,60398.0,60397.0,1.36129591]
[1723263163483,0.001832,60398.0,60397.0,1.36829591]
[1723263163980,0.002832,60398.0,60397.0,1.37529591]
[1723263164220,0.000832,60398.0,60397.0,1.35416289]
[1723263164444,0.001832,60398.0,60397.0,1.37016289]
[1723263164703,0.002832,60398.0,60397.0,1.36516289]
[1723263165611,0.002832,60398.0,60397.0,1.35916289]
[1723263165612,0.001832,60398.0,60397.0,1.35916289]
[1723263166105,0.002832,60398.0,60397.0,1.36316289]
[1723263166323,0.001832,60398.0,60397.0,1.36916289]
[1723263166554,0.001832,60398.0,60397.0,1.36816289]
[1723263166787,0.000832,60398.0,60397.0,1.02302089]
[1723263167267,0.002832,60398.0,60397.0,0.91822792]
[1723263167490,0.001832,60398.0,60397.0,0.91422792]
[1723263167752,0.000832,60398.0,60397.0,0.1407]
[1723263167988,0.001832,60398.0,60397.0,0.1437]
[1723263168465,0.000832,60398.0,60397.0,0.1407]
[1723263168954,0.001832,60398.0,60397.0,0.1447]
[1723263169255,0.000832,60398.0,60397.0,0.1407]
[1723263169715,0.001832,60398.0,60397.0,0.310271]
[1723263169954,0.000832,60398.0,60397.0,0.306271]
[1723263170177,0.002832,60398.0,60397.0,0.313271]
[1723263170398,0.001832,60398.0,60397.0,0.309271]
[1723263170606,0.000832,60398.0,60397.0,0.306271]
[1723263170825,0.001832,60398.0,60397.0,0.310271]
[1723263171059,0.002832,60398.0,60397.0,0.1477]
[1723263172869,0.002832,60398.0,60397.0,0.313271]
[1723263174841,0.002832,60398.0,60397.0,0.644413]
[1723263175265,0.002832,60398.0,60397.0,0.76697633]
[1723263175928,0.002832,60398.0,60397.0,0.94098441]
[1723263176719,0.002832,60398.0,60397.0,0.94298441]
[1723263177141,0.002832,60398.0,60397.0,0.93098441]
[1723263177355,0.002832,60398.0,60397.0,0.94098441]
[1723263177758,0.002832,60398.0,60397.0,0.93098441]
[1723263178516,0.002832,60398.0,60397.0,0.93189961]
[1723263179936,0.002832,60398.0,60397.0,0.93161822]
[1723263183042,0.002832,60398.0,60397.0,0.93160659]
[1723263183268,0.002832,60398.0,60397.0,0.60046459]
[1723263183501,0.1684,60398.0,60397.0,0.0079152]
[1723263183712,0.564136,60398.0,60397.0,0.13016902]
[1723263184024,0.895272,60398.0,60397.0,0.13016902]
[1723263184229,0.895272,60398.0,60397.0,0.0079152]
[1723263184432,0.92601436,60398.0,60397.0,0.0079152]
[1723263184660,0.92501436,60398.0,60397.0,0.0049152]
[1723263184882,1.33695036,60398.0,60397.0,0.0049152]
[1723263185346,1.33595036,60398.0,60397.0,0.0009152]
[1723263185754,1.33695036,60398.0,60397.0,0.0009152]
[1723263185926,1.33595036,60398.0,60397.0,0.0009152]
[1723263186144,1.34095036,60398.0,60397.0,0.0039152]
[1723263186477,1.34095036,60398.0,60397.0,0.0009152]
[1723263186692,1.33995036,60398.0,60397.0,0.0009152]
[1723263186926,1.34395036,60398.0,60397.0,0.0009152]
[1723263188027,1.34383369,60398.0,60397.0,0.0009152]
[1723263188704,1.93878461,60398.0,60397.0,0.0009152]
[1723263189170,1.98749318,60398.0,60397.0,0.0009152]
[1723263189390,1.93878461,60398.0,60397.0,0.0009152]
[1723263189630,1.93478461,60398.0,60397.0,0.0009152]
[1723263189838,2.06433722,60398.0,60397.0,0.0009152]
[1723263189991,2.0035061,60398.0,60397.0,0.0009152]
[1723263190245,1.96880516,60398.0,60397.0,0.0009152]
[1723263190407,1.95480516,60398.0,60397.0,0.0009152]
[1723263190808,1.96867513,60398.0,60397.0,0.0009152]
[1723263195152,1.96873073,60398.0,60397.0,0.0009152]
[1723263195831,1.72411581,60398.0,60397.0,0.0009152]
[1723263196041,1.80491581,60398.0,60397.0,0.0009152]
[1723263196255,1.80486271,60398.0,60397.0,0.0009152]
[1723263198002,1.80481366,60398.0,60397.0,0.0009152]
[1723263199080,1.70481366,60398.0,60397.0,0.0009152]
[1723263201613,1.70481399,60398.0,60397.0,0.0009152]
[1723263201843,0.525536,60398.0,60397.0,0.0784152]
[1723263202305,0.856672,60398.0,60397.0,0.0009152]
[1723263202952,0.842672,60398.0,60397.0,0.0009152]
[1723263203176,0.841672,60398.0,60397.0,0.0009152]
[1723263204057,0.829672,60398.0,60397.0,0.0009152]
[1723263204997,0.828672,60398.0,60397.0,0.0009152]
[1723263205439,1.225308,60398.0,60397.0,0.0009152]
[1723263206098,1.225308,60398.0,60397.0,0.0029152]
[1723263206307,1.225308,60398.0,60397.0,0.0009152]
[1723263206510,1.226308,60398.0,60397.0,0.0009152]
[1723263206837,1.301208,60398.0,60397.0,0.0009152]
[1723263207255,1.302208,60398.0,60397.0,0.0009152]
[1723263207675,1.301208,60398.0,60397.0,0.0009152]
[1723263208212,1.638344,60398.0,60397.0,0.0009152]
[1723263208611,1.80215892,60398.0,60397.0,0.0009152]
[1723263209037,1.81806813,60398.0,60397.0,0.0009152]
[1723263209517,1.81206813,60398.0,60397.0,0.0009152]
[1723263209714,1.80606813,60398.0,60397.0,0.0009152]
[1723263209920,1.81206813,60398.0,60397.0,0.0009152]
[1723263210143,1.81806813,60398.0,60397.0,0.0009152]
[1723263210433,1.81206813,60398.0,60397.0,0.0009152]
[1723263210657,1.81806813,60398.0,60397.0,0.0009152]
[1723263210906,1.48693213,60398.0,60397.0,0.0009152]
[1723263211102,1.41103213,60398.0,60397.0,0.0009152]
[1723263212491,1.48693213,60398.0,60397.0,0.0009152]
[1723263217988,1.81806813,60398.0,60397.0,0.0009152]
[1723263221034,1.84401285,60398.0,60397.0,0.0009152]
[1723263221826,1.95791285,60398.0,60397.0,0.0009152]
[1723263223163,2.0271091,60398.0,60397.0,0.0009152]
[1723263223404,2.02719705,60398.0,60397.0,0.0009152]
[1723263223610,1.95791285,60398.0,60397.0,0.0009152]
[1723263224438,2.02752992,60398.0,60397.0,0.0009152]
[1723263225063,1.95791285,60398.0,60397.0,0.0009152]
[1723263225276,2.02848376,60398.0,60397.0,0.0009152]
[1723263225691,2.02848604,60398.0,60397.0,0.0009152]
[1723263226727,2.1113879,60398.0,60397.0,0.0009152]
[1723263226962,1.95791285,60398.0,60397.0,0.0009152]
[1723263227188,2.19064672,60398.0,60397.0,0.0009152]
[1723263227369,2.24006635,60398.0,60397.0,0.0009152]
[1723263228180,2.24011542,60398.0,60397.0,0.0009152]
[1723263228386,2.75372012,60398.0,60397.0,0.0009152]
[1723263228596,2.57547035,60398.0,60397.0,0.0009152]
[1723263228805,2.65450438,60398.0,60397.0,0.0009152]
[1723263229008,2.6548413,60398.0,60397.0,0.0009152]
[1723263229216,2.8032474,60398.0,60397.0,0.0009152]
[1723263229420,2.7912474,60398.0,60397.0,0.0009152]
[1723263229624,2.8052474,60398.0,60397.0,0.0009152]
[1723263229842,2.81913765,60398.0,60397.0,0.0009152]
[1723263230050,2.80513765,60398.0,60397.0,0.0009152]
[1723263230465,2.65673155,60398.0,60397.0,0.0009152]
[1723263230619,2.67073155,60398.0,60397.0,0.0009152]
[1723263231056,2.64762788,60398.0,60397.0,0.0009152]
[1723263231256,2.63773155,60398.0,60397.0,0.0009152]
[1723263231432,2.73676665,60398.0,60397.0,0.0009152]
[1723263231837,2.70876665,60398.0,60397.0,0.0009152]
[1723263232311,2.50408395,60398.0,60397.0,0.0009152]
[1723263232512,2.73541785,60398.0,60397.0,0.0009152]
[1723263235687,2.63638275,60398.0,60397.0,0.0009152]
[1723263236140,2.76017908,60398.0,60397.0,0.0009152]
[1723263236367,2.66938275,60398.0,60397.0,0.0009152]
[1723263236583,2.66578718,60398.0,60397.0,0.0009152]
[1723263239603,2.59886586,60398.0,60397.0,0.0009152]
[1723263239817,2.66347337,60398.0,60397.0,0.0009152]
[1723263241365,2.68347337,60398.0,60397.0,0.0009152]
[1723263241587,1.831341,60395.0,60394.0,0.0093777]
[1723263241878,2.46810999,60395.0,60394.0,0.0093777]
[1723263242098,2.62924305,60395.0,60394.0,0.0093777]
[1723263242552,3.06039605,60395.0,60394.0,0.0093777]
[1723263242787,3.06039605,60395.0,60391.0,0.0001]
[1723263242788,2.093029,60392.0,60391.0,0.0001]
[1723263243005,2.4788225,60392.0,60391.0,0.0001]
[1723263243224,2.60558449,60392.0,60391.0,0.0001]
[1723263244713,2.67979986,60392.0,60391.0,0.0001]
[1723263245192,2.69379986,60392.0,60391.0,0.0001]
[1723263245396,2.18060328,60392.0,60391.0,0.0001]
[1723263245604,2.21200775,60392.0,60391.0,0.0001]
[1723263246038,2.21210407,60392.0,60391.0,0.0001]
[1723263246275,2.26158552,60392.0,60391.0,0.0001]
[1723263247240,2.26240602,60392.0,60391.0,0.0001]
[1723263247446,2.21292457,60392.0,60391.0,0.0001]
[1723263247851,2.26240262,60392.0,60391.0,0.0001]
[1723263248251,2.21292457,60392.0,60391.0,0.0010141]
[1723263248469,2.18492457,60392.0,60391.0,0.0010141]
[1723263248670,2.21292457,60392.0,60391.0,0.0010141]
[1723263248872,2.21284227,60392.0,60391.0,0.0010141]
[1723263249237,2.26233463,60392.0,60391.0,0.0010141]
[1723263249433,2.21284227,60392.0,60391.0,0.0010141]
[1723263249659,2.28709579,60392.0,60391.0,0.0010141]
[1723263251345,0.1477,60384.0,60383.0,0.009141]
[1723263251560,0.1477,60384.0,60370.0,0.0769]
[1723263251561,0.165639,60372.0,60370.0,0.0769]
[1723263251761,1.30390419,60372.0,60370.0,0.0769]
[1723263251934,1.63518319,60372.0,60370.0,0.0769]
[1723263252154,1.604655,60372.0,60370.0,0.0769]
[1723263252356,1.63518527,60372.0,60370.0,0.0769]
[1723263252583,1.79900019,60372.0,60370.0,0.0769]
[1723263252924,1.80100019,60372.0,60370.0,0.0769]
[1723263253119,1.79900019,60372.0,60370.0,0.0769]
[1723263253346,1.79900019,60372.0,60367.0,0.1387]
[1723263253551,1.80500019,60372.0,60367.0,0.1387]
[1723263253755,2.13027919,60372.0,60363.0,0.0887195]
[1723263253964,2.61342926,60372.0,60363.0,0.0887195]
[1723263254370,2.66287171,60372.0,60363.0,0.0887195]
[1723263254573,2.67887171,60372.0,60363.0,0.0887195]
[1723263254782,2.67887171,60372.0,60363.0,0.0118195]
[1723263255001,1.638653,60364.0,60363.0,0.0118195]
[1723263255214,1.96379819,60364.0,60363.0,0.0118195]
[1723263255418,1.78529819,60364.0,60363.0,0.0118195]
[1723263255637,1.89919819,60364.0,60363.0,0.0887195]
[1723263255850,1.73538327,60364.0,60363.0,0.0887195]
[1723263256280,1.74915858,60364.0,60363.0,0.0887195]
[1723263257279,1.75917983,60364.0,60363.0,0.0887195]
[1723263257691,1.75817983,60364.0,60363.0,0.0887195]
[1723263257821,1.76917983,60364.0,60363.0,0.0887195]
[1723263258025,1.75617983,60364.0,60363.0,0.0887195]
[1723263258653,1.74517983,60364.0,60363.0,0.0887195]
[1723263258864,1.75617983,60364.0,60363.0,0.0118195]
[1723263259461,1.76617983,60364.0,60363.0,0.0118195]
[1723263259901,1.75617983,60364.0,60363.0,0.0118195]
[1723263260101,1.76617983,60364.0,60363.0,0.0118195]
[1723263260946,0.01,60361.0,60352.0,0.009141]
[1723263261099,0.61095,60356.0,60352.0,0.009141]
[1723263261300,1.8822715,60356.0,60352.0,0.009141]
[1723263261553,2.2136385,60356.0,60352.0,0.009141]
[1723263261803,2.3737385,60356.0,60352.0,0.009141]
[1723263262027,2.3837385,60356.0,60352.0,0.009141]
[1723263262233,1.822606,60353.0,60352.0,0.009141]
[1723263262487,0.567183,60352.0,60351.0,0.0001]
[1723263262663,0.904055,60346.0,60345.0,0.009141]
[1723263262861,1.79946894,60346.0,60345.0,0.009141]
[1723263263468,1.19033202,60346.0,60345.0,0.157341]
[1723263263672,0.828555,60346.0,60345.0,0.157341]
[1723263263872,1.159977,60346.0,60345.0,0.157341]
[1723263264025,1.173977,60346.0,60345.0,0.157341]
[1723263264224,0.842555,60346.0,60345.0,0.157341]
[1723263264455,0.828555,60346.0,60345.0,0.142341]
[1723263264655,0.842555,60346.0,60345.0,0.142341]
[1723263265074,0.014,60346.0,60345.0,0.308054]
[1723263265302,0.165698,60351.0,60349.0,0.0821]
[1723263265518,0.2851,60366.0,60345.0,0.49524192]
[1723263265519,0.331339,60362.0,60351.0,0.01]
[1723263265733,0.165691,60353.0,60352.0,0.0821]
[1723263265948,0.497074,60353.0,60352.0,0.0821]
[1723263267390,0.497074,60353.0,60352.0,0.1482]
[1723263268497,1.15984,60353.0,60352.0,0.1482]
[1723263269836,1.16284,60353.0,60352.0,0.1482]
[1723263270051,1.15984,60353.0,60352.0,0.1482]
[1723263270489,1.16284,60353.0,60352.0,0.1482]
[1723263270706,1.16284,60353.0,60352.0,0.0821]
[1723263270934,1.16684,60353.0,60352.0,0.0821]
[1723263271342,1.16284,60353.0,60352.0,0.0821]
[1723263271558,1.16684,60353.0,60352.0,0.0821]
[1723263271976,1.16284,60353.0,60352.0,0.0821]
[1723263272414,1.16684,60353.0,60352.0,0.0821]
[1723263272618,0.832457,60353.0,60352.0,0.0821]
[1723263272865,0.835457,60353.0,60352.0,0.0821]
[1723263273077,0.832457,60353.0,60352.0,0.0821]
[1723263273491,0.835457,60353.0,60352.0,0.0821]
[1723263273710,0.832457,60353.0,60352.0,0.0821]
[1723263273916,0.828457,60353.0,60352.0,0.0821]
[1723263274147,0.832457,60353.0,60352.0,0.0821]
[1723263274346,0.497124,60347.0,60346.0,0.0661]
[1723263274617,0.82854,60347.0,60346.0,0.0661]
[1723263275076,0.82854,60347.0,60346.0,0.1482]
[1723263275755,0.497149,60344.0,60343.0,0.0821]
[1723263275978,0.828582,60344.0,60343.0,0.0821]
[1723263277131,0.829582,60344.0,60343.0,0.0821]
[1723263277744,0.497157,60343.0,60342.0,0.0003]
[1723263278191,0.497157,60343.0,60342.0,0.0824]
[1723263279050,0.498157,60343.0,60342.0,0.0824]
[1723263279756,0.499157,60343.0,60342.0,0.0824]
[1723263282637,0.830595,60343.0,60342.0,0.0824]
[1723263286589,0.830595,60343.0,60342.0,0.0833152]
[1723263287255,0.499157,60343.0,60342.0,0.0833152]
[1723263289414,0.830595,60343.0,60342.0,0.0833152]
[1723263289657,0.830595,60343.0,60342.0,0.0012152]
[1723263292282,0.499157,60343.0,60342.0,0.0795152]
[1723263297418,0.5293615,60343.0,60342.0,0.0795152]
[1723263297675,0.52934994,60343.0,60342.0,0.0795152]
[1723263298365,0.86078794,60343.0,60342.0,0.0795152]
[1723263298603,0.86078794,60343.0,60342.0,0.0012152]
[1723263300198,0.830595,60343.0,60342.0,0.0012152]
[1723263300399,0.86081714,60343.0,60342.0,0.11365456]
[1723263301234,1.30625514,60343.0,60342.0,0.0012152]
[1723263301690,1.19225514,60343.0,60342.0,0.0012152]
[1723263302138,1.276033,60343.0,60342.0,0.0012152]
[1723263302387,1.30423732,60343.0,60342.0,0.0012152]
[1723263303319,1.30523732,60343.0,60342.0,0.0012152]
[1723263303589,1.30599449,60343.0,60342.0,0.0012152]
[1723263304043,1.276033,60343.0,60342.0,0.0012152]
[1723263304268,1.30599856,60343.0,60342.0,0.0012152]
[1723263306629,1.30499856,60343.0,60342.0,0.0012152]
[1723263306857,1.30999856,60343.0,60342.0,0.0012152]
[1723263307089,1.31599856,60343.0,60342.0,0.0012152]
[1723263307369,1.30999856,60343.0,60342.0,0.0012152]
[1723263307583,1.30399856,60343.0,60342.0,0.0012152]
[1723263307803,1.30899856,60343.0,60342.0,0.0012152]
[1723263309085,1.30599856,60343.0,60342.0,0.0012152]
[1723263309311,1.30799856,60343.0,60342.0,0.0012152]
[1723263309540,1.30399856,60343.0,60342.0,0.0012152]
[1723263309983,1.31799856,60343.0,60342.0,0.0012152]
[1723263310549,1.31108705,60343.0,60342.0,0.0012152]
[1723263311401,1.38768705,60343.0,60342.0,0.0012152]
[1723263311617,1.44888705,60343.0,60342.0,0.0012152]
[1723263312055,1.44188705,60343.0,60342.0,0.0012152]
[1723263312264,1.44888705,60343.0,60342.0,0.0012152]
[1723263312540,1.45188705,60343.0,60342.0,0.0012152]
[1723263312947,1.78332505,60343.0,60342.0,0.0012152]
[1723263313165,1.79332505,60343.0,60342.0,0.0012152]
[1723263313595,1.46189122,60343.0,60342.0,0.0012152]
[1723263314116,1.79337292,60343.0,60342.0,0.0012152]
[1723263314312,1.95718793,60343.0,60342.0,0.0012152]
[1723263314529,1.95718651,60343.0,60342.0,0.0012152]
[1723263315181,1.94718651,60343.0,60342.0,0.0012152]
[1723263315381,2.26862451,60343.0,60342.0,0.0012152]
[1723263315592,2.32484175,60343.0,60342.0,0.0012152]
[1723263316024,2.31284175,60343.0,60342.0,0.0012152]
[1723263316244,2.23865023,60343.0,60342.0,0.0012152]
[1723263316482,1.32913359,60343.0,60342.0,0.0012152]
[1723263316892,1.31713359,60343.0,60342.0,0.0012152]
[1723263317521,1.3170474,60343.0,60342.0,0.0012152]
[1723263318405,1.3040474,60343.0,60342.0,0.0012152]
[1723263318614,1.3180474,60343.0,60342.0,0.0012152]
[1723263318822,1.3300474,60343.0,60342.0,0.0012152]
[1723263319263,1.3180474,60343.0,60342.0,0.0012152]
[1723263319683,1.3250474,60343.0,60342.0,0.0012152]
[1723263319875,1.1970474,60343.0,60342.0,0.0012152]
[1723263320090,1.3180474,60343.0,60342.0,0.0012152]
[1723263320979,0.87264439,60343.0,60342.0,0.0012152]
[1723263321190,0.014,60343.0,60342.0,0.1438152]
[1723263321389,0.014,60343.0,60342.0,0.26038939]
[1723263321591,0.014,60343.0,60342.0,0.25707543]
[1723263321790,0.014,60343.0,60342.0,0.59992243]
[1723263321995,0.014,60343.0,60342.0,1.26281043]
[1723263322200,0.007,60343.0,60342.0,1.40915494]
[1723263322424,0.014,60343.0,60342.0,1.41914257]
[1723263323058,0.007,60343.0,60342.0,1.07769857]
[1723263323265,0.008,60343.0,60342.0,1.08769857]
[1723263323484,0.001,60343.0,60342.0,0.57722249]
[1723263323693,0.002,60343.0,60342.0,0.50473681]
[1723263324123,0.002,60343.0,60342.0,0.55519858]
[1723263324124,0.001,60343.0,60342.0,0.55519858]
[1723263324325,0.002,60343.0,60342.0,0.66986612]
[1723263324524,0.002,60343.0,60342.0,0.25848274]
[1723263324726,0.002,60343.0,60342.0,0.25648365]
[1723263324727,0.001,60343.0,60342.0,0.25648365]
[1723263325143,0.166719,60343.0,60342.0,0.25948365]
[1723263325345,0.002,60343.0,60342.0,0.26148365]
[1723263325589,0.167719,60343.0,60342.0,0.26148365]
[1723263325813,0.167719,60343.0,60342.0,0.25948365]
[1723263326039,0.166719,60343.0,60342.0,0.25960334]
[1723263326243,0.166719,60343.0,60342.0,0.26160334]
[1723263326244,0.167719,60343.0,60342.0,0.26160334]
[1723263326442,0.001,60343.0,60342.0,0.25860334]
[1723263326876,0.001,60343.0,60342.0,0.42632534]
[1723263326877,0.002,60343.0,60342.0,0.42632534]
[1723263328400,0.002,60343.0,60342.0,0.92195335]
[1723263328827,0.002,60343.0,60342.0,1.59484135]
[1723263329247,0.002,60343.0,60342.0,1.69408719]
[1723263329665,0.002,60343.0,60342.0,1.59484135]
[1723263329887,0.002,60343.0,60342.0,1.78768225]
[1723263330096,0.002,60343.0,60342.0,1.84244591]
[1723263330303,0.002,60343.0,60342.0,1.8183886]
[1723263330738,0.002,60343.0,60342.0,2.7498326]
[1723263330949,0.002,60343.0,60342.0,2.1498326]
[1723263331182,0.001,60343.0,60342.0,2.14806089]
[1723263331392,0.002,60343.0,60342.0,2.86209966]
[1723263331612,0.002,60343.0,60342.0,3.03386352]
[1723263331835,0.001,60343.0,60342.0,3.58317496]
[1723263332058,0.002,60343.0,60342.0,3.88818198]
[1723263332277,0.000832,60345.0,60344.0,1.696018]
[1723263332496,0.000832,60345.0,60344.0,3.80620195]
[1723263332704,0.000832,60345.0,60344.0,4.80120897]
[1723263332841,0.000832,60345.0,60344.0,4.82445427]
[1723263333077,0.000832,60345.0,60344.0,4.97314283]
[1723263333315,0.000832,60345.0,60344.0,4.65252041]
[1723263333521,0.001832,60345.0,60344.0,4.66652041]
[1723263333732,0.002832,60345.0,60344.0,4.68052041]
[1723263334145,0.002832,60345.0,60344.0,4.85245567]
[1723263334617,0.002832,60345.0,60344.0,4.68065783]
[1723263334853,0.002832,60345.0,60344.0,5.00127525]
[1723263335094,0.002832,60345.0,60344.0,4.85487538]
[1723263335320,0.002832,60345.0,60344.0,4.852568]
[1723263335954,0.000831,60371.0,60352.0,1.52325]
[1723263336108,0.000831,60371.0,60352.0,2.34802687]
[1723263336724,0.000831,60371.0,60352.0,2.90802687]
[1723263336925,0.000831,60371.0,60352.0,3.67678739]
[1723263337133,0.001832,60353.0,60352.0,3.83616857]
[1723263337334,0.001832,60353.0,60352.0,3.84624271]
[1723263337550,0.001832,60353.0,60352.0,3.87941271]
[1723263338207,0.002832,60353.0,60352.0,3.89341271]
[1723263338623,0.002832,60353.0,60352.0,3.87934269]
[1723263338624,0.001832,60353.0,60352.0,3.87934269]
[1723263338854,0.000832,60353.0,60352.0,3.86634269]
[1723263339076,0.001832,60353.0,60352.0,3.12517269]
[1723263339289,0.001832,60353.0,60352.0,2.94606801]
[1723263340571,0.001832,60353.0,60352.0,2.97923801]
[1723263340825,0.001832,60353.0,60352.0,2.94585121]
[1723263341060,0.001832,60353.0,60352.0,2.97902121]
[1723263341276,0.001832,60353.0,60352.0,2.94585121]
[1723263341922,0.001832,60353.0,60352.0,2.97902121]
[1723263343131,0.001832,60353.0,60352.0,3.67902121]
[1723263343564,0.001832,60353.0,60352.0,2.97902121]
[1723263345093,0.001832,60353.0,60352.0,2.97900885]
[1723263345335,0.001832,60353.0,60352.0,3.0477721]
[1723263345783,0.001832,60353.0,60352.0,3.04771703]
[1723263346710,0.001832,60353.0,60352.0,3.74771703]
[1723263346932,0.001832,60353.0,60352.0,3.74771713]
[1723263347144,0.001832,60353.0,60352.0,3.8939996]
[1723263348038,0.001832,60353.0,60352.0,3.1939996]
[1723263348279,0.001832,60353.0,60352.0,3.01454713]
[1723263348563,0.001832,60353.0,60352.0,3.02118013]
[1723263348797,0.001832,60353.0,60352.0,3.02127692]
[1723263350948,0.001832,60353.0,60352.0,3.05444692]
[1723263351397,0.001832,60353.0,60352.0,3.22635642]
[1723263352260,0.001832,60353.0,60352.0,3.22647586]
[1723263353150,0.001832,60353.0,60352.0,3.44694311]
[1723263353390,0.001,60353.0,60352.0,3.37296568]
[1723263353656,0.0002168,60375.0,60373.0,0.165635]
[1723263353897,0.0002168,60375.0,60374.0,0.27739453]
[1723263354115,0.0623,60376.0,60374.0,0.27736183]
[1723263354320,0.0002168,60375.0,60374.0,0.16381492]
[1723263354733,0.0002168,60375.0,60374.0,0.27741901]
[1723263354945,0.0002168,60375.0,60374.0,0.16381492]
[1723263355144,0.001,60375.0,60374.0,0.2774202]
[1723263355349,0.001,60375.0,60374.0,0.16381492]
[1723263355573,0.2281458,60376.0,60374.0,0.16381492]
[1723263355800,0.0625168,60376.0,60374.0,0.16981492]
[1723263356016,0.0625168,60376.0,60374.0,0.17581492]
[1723263356017,0.001,60375.0,60374.0,0.17581492]
[1723263356690,0.001,60375.0,60374.0,0.28909114]
[1723263357117,0.001,60375.0,60374.0,0.28309114]
[1723263357264,0.0625168,60376.0,60374.0,0.28209114]
[1723263357522,0.0625168,60376.0,60375.0,0.11327622]
[1723263357689,0.0625168,60376.0,60375.0,0.27709114]
[1723263357893,0.2281448,60376.0,60375.0,0.27709114]
[1723263358477,0.0625168,60376.0,60375.0,0.27709114]
[1723263358678,0.0625168,60376.0,60375.0,0.28209114]
[1723263358893,0.2281448,60376.0,60375.0,0.28209114]
[1723263359302,0.2281448,60376.0,60375.0,0.16881492]
[1723263359507,0.2281448,60376.0,60375.0,0.28220491]
[1723263359951,0.6402018,60376.0,60375.0,0.11838999]
[1723263360527,0.6410338,60376.0,60375.0,0.11838999]
[1723263361009,0.3097768,60376.0,60375.0,0.11638999]
[1723263361211,0.6410338,60376.0,60375.0,0.11638999]
[1723263361414,0.6410338,60376.0,60375.0,0.11938999]
[1723263361616,0.3097768,60376.0,60375.0,0.11638999]